bitfinex-derivatives/quotes_BTCF0:USTF0_20251216
["timestamp","ask_amount","ask_price","bid_price","bid_amount"]
[1765881906855,0.3608,87229.0,87228.0,0.67207]
[1765881907055,0.0114658,87235.0,87228.0,0.67207]
[1765881907247,0.0114667,87228.0,87222.0,0.3608]
[1765881907444,0.70635,87226.0,87222.0,0.3608]
[1765881907950,0.70735,87226.0,87222.0,0.3608]
[1765881909251,1.06815,87226.0,87212.0,0.3608]
[1765881909457,0.70635,87213.0,87204.0,0.3608]
[1765881909851,0.73264,87220.0,87204.0,0.3608]
[1765881910043,0.70635,87205.0,87204.0,0.3608]
[1765881910654,0.25504888,87230.0,87204.0,0.3608]
[1765881910655,0.00017201,87213.0,87212.0,0.67207]
[1765881910857,0.00017201,87221.0,87216.0,0.0114682]
[1765881911053,0.00017201,87221.0,87220.0,0.3608]
[1765881911259,0.00017201,87221.0,87220.0,1.03287]
[1765881911462,0.00017201,87221.0,87220.0,0.68935]
[1765881911658,0.00017201,87221.0,87220.0,1.03287]
[1765881911853,0.3608,87235.0,87234.0,0.67207]
[1765881912054,0.33572,87238.0,87234.0,0.67207]
[1765881912563,0.7441048,87243.0,87234.0,0.67207]
[1765881912755,0.0114651,87240.0,87234.0,0.67207]
[1765881913159,0.001,87235.0,87234.0,0.67207]
[1765881913556,0.35331,87235.0,87230.0,0.36097201]
[1765881913758,0.70635,87231.0,87230.0,0.36097201]
[1765881914058,0.70635,87231.0,87230.0,0.00017201]
[1765881914059,0.7178163,87231.0,87230.0,0.00017201]
[1765881914753,0.70635,87224.0,87223.0,0.07010729]
[1765881914955,1.43875,87224.0,87223.0,0.07010729]
[1765881915361,1.43875,87224.0,87223.0,0.0492476]
[1765881915551,0.70635,87212.0,87211.0,0.3608]
[1765881915860,0.00017201,87220.0,87218.0,0.011468]
[1765881916058,0.00017201,87220.0,87219.0,1.03287]
[1765881916451,0.35248201,87220.0,87219.0,0.3608]
[1765881916857,0.35248201,87220.0,87211.0,0.3608]
[1765881917059,0.0114679,87219.0,87211.0,0.3608]
[1765881917457,0.00117201,87220.0,87211.0,0.3608]
[1765881917661,0.0114681,87218.0,87211.0,0.3608]
[1765881918167,0.70635,87212.0,87211.0,0.3608]
[1765881918469,0.3608,87216.0,87203.0,0.32872201]
[1765881918651,0.3608,87216.0,87203.0,0.00017201]
[1765881918962,0.00017201,87220.0,87218.0,0.011468]
[1765881919167,0.00017201,87220.0,87210.0,0.48249788]
[1765881919362,0.0114685,87215.0,87210.0,0.21598]
[1765881919671,0.35231,87209.0,87208.0,0.3608]
[1765881920357,0.00017201,87220.0,87210.0,0.21598]
[1765881920558,0.732,87219.0,87210.0,0.47102888]
[1765881920759,0.732,87219.0,87210.0,0.21598]
[1765881920963,0.35231,87209.0,87208.0,0.3608]
[1765881921157,0.70635,87209.0,87208.0,0.3608]
[1765881921863,0.001,87209.0,87208.0,1.03287]
[1765881922456,0.00017201,87220.0,87208.0,0.70432]
[1765881922656,0.00017201,87220.0,87219.0,0.6835379]
[1765881924661,0.73172,87232.0,87219.0,0.6835379]
[1765881924865,0.73172,87232.0,87230.0,0.0114664]
[1765881925069,0.73172,87232.0,87231.0,0.32855]
[1765881925660,0.0114651,87241.0,87232.0,0.0114662]
[1765881925861,0.7428651,87241.0,87232.0,0.0114662]
[1765881926062,0.70635,87225.0,87224.0,0.3608]
[1765881927068,0.70635,87225.0,87223.0,0.00017201]
[1765881927069,0.7178172,87224.0,87223.0,0.00017201]
[1765881927277,0.7178188,87212.0,87211.0,0.3608]
[1765881927477,0.70635,87212.0,87211.0,0.3608]
[1765881927667,0.35231,87202.0,87201.0,0.3608]
[1765881927865,0.0114707,87198.0,87192.0,0.57678]
[1765881928071,0.70635,87193.0,87192.0,0.3608]
[1765881928267,0.70635,87193.0,87181.0,0.04041255]
[1765881928268,0.70635,87184.0,87175.0,0.3608]
[1765881928468,1.06715,87184.0,87175.0,0.3608]
[1765881928667,1.06715,87184.0,87175.0,0.00017201]
[1765881928974,0.7178235,87176.0,87175.0,0.00017201]
[1765881929170,1.79875,87176.0,87175.0,0.00017201]
[1765881929472,1.43795,87176.0,87175.0,0.00017201]
[1765881929872,1.43795,87176.0,87166.0,0.0114747]
[1765881929873,0.35231,87147.0,87138.0,0.04270777]
[1765881930070,0.00010565,87146.0,87138.0,0.00229522]
[1765881930271,0.00010565,87146.0,87145.0,0.67207]
[1765881930975,0.00010565,87146.0,87145.0,1.03287]
[1765881931975,0.00010565,87146.0,87145.0,1.76439]
[1765881932174,0.00010565,87146.0,87145.0,1.76435]
[1765881932377,0.00017213,87154.0,87153.0,0.67207]
[1765881932577,0.00017213,87154.0,87153.0,1.03287]
[1765881935580,0.00017213,87154.0,87153.0,1.03387]
[1765881935782,0.21245,87180.0,87153.0,0.3618]
[1765881935982,0.011474,87173.0,87168.0,0.3608]
[1765881936165,0.34795,87170.0,87169.0,0.6884]
[1765881936367,0.703,87169.0,87168.0,0.3608]
[1765881936574,0.703,87169.0,87168.0,1.09196]
[1765881936773,0.703,87169.0,87168.0,0.3608]
[1765881936973,0.703,87169.0,87168.0,1.092]
[1765881938581,0.703,87169.0,87168.0,0.3608]
[1765881938881,0.705,87169.0,87168.0,1.09192]
[1765881939082,0.705,87169.0,87168.0,1.09172]
[1765881939274,0.705,87169.0,87168.0,0.3608]
[1765881939470,0.705,87169.0,87168.0,1.09168]
[1765881939680,0.705,87169.0,87168.0,1.0916]
[1765881939881,0.704,87169.0,87168.0,1.0916]
[1765881940683,0.705,87169.0,87168.0,1.0916]
[1765881941183,0.7164744,87169.0,87168.0,1.0916]
[1765881941377,0.7164744,87169.0,87168.0,1.09144]
[1765881941378,0.705,87169.0,87168.0,1.09144]
[1765881941578,0.002,87169.0,87168.0,1.09144]
[1765881941988,0.00017213,87177.0,87176.0,0.7183835]
[1765881942183,0.00017213,87177.0,87176.0,0.71808]
[1765881942584,0.00017213,87177.0,87176.0,1.06771]
[1765881942785,0.3608,87192.0,87191.0,0.70691]
[1765881942990,1.0638,87192.0,87191.0,0.73076]
[1765881943288,0.3608,87202.0,87192.0,0.0114714]
[1765881943787,0.3608,87244.0,87228.0,0.70691]
[1765881943978,0.3608,87253.0,87234.0,0.25504888]
[1765881943979,0.3608,87242.0,87234.0,0.25504888]
[1765881944877,0.3608,87242.0,87234.0,0.26651478]
[1765881945185,0.3608,87253.0,87237.0,0.3608]
[1765881945387,0.3722643,87246.0,87237.0,0.3608]
[1765881945981,0.3608,87246.0,87237.0,0.3608]
[1765881946179,0.703,87238.0,87237.0,0.3608]
[1765881946975,0.703,87238.0,87237.0,1.09216]
[1765881947181,0.001,87242.0,87237.0,1.09212]
[1765881947380,0.011465,87241.0,87237.0,1.09212]
[1765881947583,0.001,87242.0,87237.0,1.09212]
[1765881948080,0.0114644,87245.0,87237.0,1.09212]
[1765881948282,0.34795,87238.0,87237.0,1.09212]
[1765881948483,0.3732644,87246.0,87237.0,1.44924]
[1765881948684,0.3618,87246.0,87245.0,0.35728]
[1765881948882,0.3608,87246.0,87245.0,0.35728]
[1765881949094,0.70875,87246.0,87245.0,0.35728]
[1765881949294,0.55906,87262.0,87245.0,0.70691]
[1765881949493,0.3608,87255.0,87250.0,0.25504888]
[1765881949684,0.3608,87255.0,87251.0,0.73092]
[1765881949879,0.3608,87262.0,87254.0,0.70691]
[1765881950179,0.3608,87262.0,87253.0,0.3608]
[1765881950180,0.34795,87254.0,87253.0,0.3608]
[1765881950380,0.703,87254.0,87253.0,0.731]
[1765881950786,0.0114634,87253.0,87245.0,0.36097193]
[1765881950978,0.3608,87255.0,87245.0,0.36097193]
[1765881950979,0.3608,87255.0,87246.0,0.73092]
[1765881951394,0.19826,87262.0,87261.0,0.70691]
[1765881951395,0.002,87262.0,87261.0,0.70691]
[1765881951688,1.0658,87262.0,87261.0,0.7308]
[1765881951890,0.705,87262.0,87261.0,0.7308]
[1765881952088,0.703,87262.0,87261.0,0.7308]
[1765881952691,0.3608,87270.0,87261.0,1.08808]
[1765881952991,0.004,87262.0,87261.0,1.4603423]
[1765881953184,0.008,87262.0,87261.0,1.4603423]
[1765881954283,0.3608,87287.0,87267.0,0.0114614]
[1765881954482,0.3608,87287.0,87275.0,0.3608]
[1765881954483,0.34795,87276.0,87275.0,0.3608]
[1765881954695,0.0114595,87283.0,87275.0,1.09128]
[1765881954897,0.372259,87287.0,87275.0,1.09128]
[1765881955090,0.0114601,87279.0,87275.0,1.09128]
[1765881955291,0.703,87276.0,87275.0,0.3608]
[1765881955493,0.90126,87276.0,87275.0,1.09112]
[1765881955693,0.90126,87276.0,87275.0,0.73032]
[1765881955995,0.0114604,87276.0,87275.0,0.70691]
[1765881956295,0.002,87283.0,87282.0,0.70691]
[1765881956495,0.002,87283.0,87282.0,1.06771]
[1765881956688,0.3608,87294.0,87293.0,0.70691]
[1765881956888,0.3608,87321.0,87304.0,0.70691]
[1765881957086,0.0114554,87314.0,87304.0,0.70691]
[1765881957487,0.3608,87314.0,87304.0,0.70691]
[1765881957984,0.3608,87314.0,87304.0,1.0902549]
[1765881958399,0.002,87305.0,87304.0,1.0902549]
[1765881958596,0.003,87305.0,87304.0,1.27765]
[1765881958800,0.001,87305.0,87304.0,1.27765]
[1765881958998,0.001,87305.0,87304.0,1.2901067]
[1765881959295,0.001,87305.0,87304.0,1.27865]
[1765881959488,0.001,87305.0,87304.0,1.06871]
[1765881960098,0.7154566,87305.0,87304.0,0.001]
[1765881960892,0.3608,87307.0,87304.0,0.001]
[1765881960893,0.3608,87307.0,87306.0,0.70691]
[1765881961300,0.3608,87321.0,87306.0,0.3608]
[1765881961501,0.3608,87321.0,87311.0,0.17321552]
[1765881962485,0.703,87307.0,87306.0,0.001]
[1765881962909,0.703,87297.0,87280.0,0.17321552]
[1765881963200,0.703,87297.0,87287.0,0.17321552]
[1765881963400,0.703,87297.0,87291.0,0.0114583]
[1765881963705,0.34795,87297.0,87287.0,0.17321552]
[1765881963998,0.68651,87297.0,87276.0,0.20994]
[1765881964203,0.20455,87300.0,87270.0,0.17321552]
[1765881964389,0.20455,87300.0,87250.0,0.0114637]
[1765881964390,0.6846,87281.0,87280.0,0.17321552]
[1765881964585,0.6846,87281.0,87276.0,0.0114603]
[1765881964888,0.6846,87281.0,87278.0,0.0114601]
[1765881965089,0.3608,87301.0,87277.0,0.3608]
[1765881965297,0.001,87297.0,87296.0,0.35447]
[1765881965995,0.001,87297.0,87292.0,0.3608]
[1765881965996,0.34704,87297.0,87292.0,0.3608]
[1765881966195,0.6846,87288.0,87287.0,0.49324]
[1765881966387,0.0124577,87297.0,87285.0,0.71527]
[1765881966388,0.001,87297.0,87285.0,0.71527]
[1765881966590,0.001,87297.0,87291.0,0.0114583]
[1765881966800,0.00017094,87298.0,87297.0,0.6962]
[1765881967403,0.3608,87314.0,87313.0,0.6962]
[1765881967587,0.3608,87324.0,87318.0,0.0114548]
[1765881967787,0.3608,87324.0,87317.0,0.0114549]
[1765881967997,0.3608,87324.0,87315.0,0.3608]
[1765881968195,0.3608,87324.0,87323.0,0.6962]
[1765881968396,0.20455,87330.0,87315.0,0.36097182]
[1765881968599,0.20455,87330.0,87316.0,1.08411]
[1765881968804,0.0114522,87339.0,87324.0,0.011454]
[1765881969102,0.0114524,87337.0,87323.0,0.3608]
[1765881969299,0.00088997,87338.0,87323.0,0.3608]
[1765881969300,0.6846,87324.0,87323.0,0.3608]
[1765881969504,0.6846,87324.0,87315.0,0.00017182]
[1765881969505,0.6846,87316.0,87315.0,0.00017182]
[1765881969694,0.20455,87330.0,87315.0,0.00017182]
[1765881969695,0.2160034,87330.0,87315.0,0.00017182]
[1765881969995,0.003,87324.0,87322.0,0.0114543]
[1765881970201,0.003,87324.0,87323.0,0.6962]
[1765881970802,0.6876,87330.0,87327.0,0.0114536]
[1765881970999,0.003,87330.0,87329.0,0.3659234]
[1765881971195,0.34904,87330.0,87321.0,0.3608]
[1765881971491,0.3574934,87330.0,87321.0,0.3608]
[1765881971807,0.6846,87322.0,87321.0,0.3608]
[1765881972192,0.6846,87316.0,87302.0,0.72916]
[1765881972392,0.6846,87316.0,87306.0,0.3608]
[1765881973004,0.216005,87318.0,87306.0,0.3608]
[1765881973005,0.6960563,87307.0,87306.0,0.3608]
[1765881973200,0.6846,87297.0,87296.0,0.3608]
[1765881973506,0.6846,87297.0,87287.0,0.3608]
[1765881973507,0.0114584,87292.0,87287.0,0.3608]
[1765881973705,0.6846,87288.0,87287.0,0.3608]
[1765881974305,0.6846,87288.0,87287.0,0.34328872]
[1765881974606,0.6846,87288.0,87279.0,0.36097182]
[1765881974607,0.6960598,87280.0,87279.0,0.00017182]
[1765881975105,0.6846,87280.0,87279.0,0.00017182]
[1765881975808,0.17477,87285.0,87258.0,0.00229207]
[1765881975997,0.17321552,87280.0,87260.0,0.17321552]
[1765881976196,0.011461,87272.0,87260.0,0.17321552]
[1765881976394,0.0114613,87269.0,87258.0,0.00229207]
[1765881976599,0.0114608,87273.0,87258.0,0.00229207]
[1765881976805,0.0114616,87267.0,87258.0,0.00229207]
[1765881977003,0.0114611,87271.0,87260.0,0.3608]
[1765881977207,0.0114614,87268.0,87258.0,0.00229207]
[1765881977405,0.3608,87269.0,87260.0,0.001]
[1765881977905,0.3608,87269.0,87258.0,0.00329207]
[1765881978307,0.6846,87259.0,87258.0,0.00329207]
[1765881978490,0.3608,87269.0,87260.0,0.001]
[1765881978691,0.00017182,87274.0,87265.0,0.0114618]
[1765881978899,0.00017182,87274.0,87268.0,0.0114613]
[1765881979102,0.00017182,87274.0,87269.0,0.0114612]
[1765881979408,0.00017182,87274.0,87264.0,0.3608]
[1765881979608,0.00017182,87274.0,87264.0,0.3722619]
[1765881979906,0.00017182,87274.0,87273.0,0.6962]
[1765881980210,0.00117182,87274.0,87273.0,0.6962]
[1765881980404,0.00117182,87274.0,87273.0,0.7076608]
[1765881980809,0.00017182,87274.0,87273.0,0.7076608]
[1765881981404,0.00017182,87274.0,87273.0,1.0684608]
[1765881982602,0.2160067,87304.0,87290.0,0.0114585]
[1765881982807,0.0114571,87301.0,87290.0,0.0114585]
[1765881983002,0.0114571,87301.0,87288.0,0.3608]
[1765881983200,0.34604,87289.0,87288.0,0.3608]
[1765881983401,0.6846,87289.0,87288.0,0.3608]
[1765881983712,0.00017182,87297.0,87288.0,0.71527]
[1765881983911,0.3638,87295.0,87289.0,0.0114587]
[1765881984108,0.003,87295.0,87289.0,0.0114587]
[1765881984612,0.003,87295.0,87291.0,0.0114583]
[1765881985212,0.003,87295.0,87294.0,0.6962]
[1765881985508,0.34904,87295.0,87294.0,0.35447]
[1765881985708,0.00017182,87297.0,87296.0,0.35447]
[1765881986711,0.00017182,87297.0,87296.0,0.7076577]
[1765881986915,0.68477182,87297.0,87288.0,0.3608]
[1765881987210,0.68477182,87297.0,87296.0,0.35447]
[1765881987407,0.00317182,87297.0,87296.0,1.057]
[1765881988801,0.3608,87311.0,87310.0,0.6962]
[1765881989006,0.3608,87311.0,87308.0,0.3531861]
[1765881989007,0.0114548,87319.0,87308.0,0.34173]
[1765881989207,0.0114548,87319.0,87310.0,0.0114559]
[1765881989607,0.3722544,87322.0,87312.0,0.0114555]
[1765881989921,0.3608,87322.0,87316.0,0.0114551]
[1765881990212,0.3608,87322.0,87310.0,0.17321552]
[1765881990413,0.3608,87322.0,87309.0,0.3608]
[1765881990614,0.002,87319.0,87318.0,0.35447]
[1765881991003,0.002,87319.0,87318.0,0.6962]
[1765881992008,0.002,87322.0,87321.0,0.86176]
[1765881992205,0.002,87322.0,87321.0,0.8732145]
[1765881992606,0.002,87322.0,87316.0,0.3608]
[1765881992607,0.6866,87322.0,87316.0,0.3608]
[1765881992806,0.6846,87317.0,87316.0,0.3608]
[1765881993712,0.002,87322.0,87319.0,0.0114546]
[1765881993907,0.002,87322.0,87321.0,0.69032]
[1765881994618,0.002,87322.0,87321.0,0.89596]
[1765881995318,0.3608,87340.0,87321.0,0.89596]
[1765881995513,0.0114524,87337.0,87329.0,0.0114534]
[1765881995717,0.0114524,87337.0,87336.0,0.34274]
[1765881995923,0.0114527,87335.0,87328.0,0.00017182]
[1765881996120,0.0114527,87335.0,87328.0,0.01162532]
[1765881996322,0.01234227,87338.0,87330.0,0.0114532]
[1765881996620,0.0114526,87336.0,87328.0,0.00017182]
[1765881996819,0.68049,87329.0,87328.0,0.00017182]
[1765881997019,0.00088997,87338.0,87332.0,0.0114529]
[1765881997320,0.00088997,87338.0,87337.0,0.69032]
[1765881997829,0.02,87346.0,87345.0,0.7017713]
[1765881998409,0.3608,87367.0,87356.0,0.34274]
[1765881998822,0.3722484,87367.0,87356.0,0.34274]
[1765881999220,0.3608,87367.0,87356.0,0.34274]
[1765881999415,0.32794,87357.0,87356.0,0.34274]
[1765881999615,0.68049,87357.0,87353.0,0.00017172]
[1765881999823,0.3608,87367.0,87356.0,0.69032]
[1765882000117,0.3608,87367.0,87366.0,0.69032]
[1765882000321,0.69074,87367.0,87366.0,0.69032]
[1765882000715,1.0547386,87367.0,87354.0,0.3608]
[1765882000912,1.0547386,87367.0,87353.0,0.00017172]
[1765882000913,0.68049,87354.0,87353.0,0.00017172]
[1765882001214,0.3608,87357.0,87334.0,0.54442]
[1765882001215,0.68049,87335.0,87334.0,0.3608]
[1765882001515,0.3608,87339.0,87334.0,0.69032]
[1765882001719,1.04129,87339.0,87329.0,0.17321552]
[1765882002116,0.32794,87323.0,87322.0,0.3608]
[1765882002331,0.3608,87339.0,87326.0,0.0114538]
[1765882002625,0.0114526,87336.0,87329.0,0.17321552]
[1765882002825,0.0114526,87336.0,87322.0,0.3608]
[1765882002826,0.3608,87339.0,87322.0,0.3608]
[1765882003014,0.0114522,87338.0,87329.0,0.17321552]
[1765882003214,0.3608,87339.0,87326.0,0.0114537]
[1765882003416,0.3608,87339.0,87338.0,0.69032]
[1765882003629,0.00017139,87343.0,87342.0,0.7017717]
[1765882004019,0.3608,87364.0,87363.0,0.69032]
[1765882004729,0.3608,87370.0,87363.0,0.69032]
[1765882005321,0.68874,87370.0,87358.0,0.00017172]
[1765882005520,0.0114482,87369.0,87360.0,0.17321552]
[1765882005828,0.3608,87370.0,87366.0,0.0114486]
[1765882006025,0.3638,87370.0,87366.0,0.0114486]
[1765882006214,0.3638,87370.0,87360.0,0.37885552]
[1765882006419,0.3638,87370.0,87369.0,0.69032]
[1765882006819,0.003,87369.0,87360.0,0.37885552]
[1765882007014,0.003,87369.0,87364.0,0.0114488]
[1765882007318,0.003,87369.0,87361.0,0.0114492]
[1765882007729,0.003,87369.0,87368.0,0.69032]
[1765882008420,0.3638,87370.0,87368.0,0.69032]
[1765882008727,0.68049,87369.0,87360.0,0.0114493]
[1765882009026,0.68049,87369.0,87362.0,0.011449]
[1765882009331,0.3608,87370.0,87369.0,0.69032]
[1765882009529,0.003,87369.0,87360.0,0.37885552]
[1765882009719,0.003,87369.0,87360.0,0.39030482]
[1765882010117,0.003,87369.0,87365.0,0.0114486]
[1765882010322,0.003,87369.0,87368.0,0.7017683]
[1765882010529,0.33094,87369.0,87360.0,0.17321552]
[1765882011027,0.33094,87369.0,87358.0,0.00017172]
[1765882011228,0.68049,87359.0,87358.0,0.00017172]
[1765882011823,0.003,87369.0,87358.0,0.69049172]
[1765882012131,0.003,87369.0,87359.0,0.17321552]
[1765882012435,0.32794,87360.0,87359.0,0.17321552]
[1765882012626,0.68049,87360.0,87359.0,0.0114495]
[1765882012823,0.32794,87360.0,87359.0,0.34274]
[1765882013026,0.32794,87363.0,87362.0,0.011449]
[1765882013432,0.68049,87363.0,87362.0,0.3608]
[1765882013935,0.003,87369.0,87362.0,1.062569]
[1765882014142,0.003,87369.0,87364.0,0.0114487]
[1765882014328,0.003,87369.0,87368.0,0.34274]
[1765882014629,0.003,87369.0,87368.0,0.69032]
[1765882014824,0.32794,87363.0,87362.0,0.3608]
[1765882015026,0.68049,87359.0,87358.0,0.00017172]
[1765882016242,0.68049,87338.0,87337.0,0.3608]
[1765882017431,0.68049,87338.0,87337.0,0.3618]
[1765882018035,0.68049,87338.0,87337.0,0.001]
[1765882019927,0.3608,87345.0,87337.0,0.69132]
[1765882020128,0.68049,87345.0,87339.0,0.3608]
[1765882020536,0.68049,87345.0,87341.0,0.0114518]
[1765882020834,0.00017172,87346.0,87345.0,0.7017713]
[1765882021037,0.42199658,87371.0,87362.0,0.69032]
[1765882021038,0.3608,87371.0,87362.0,0.69032]
[1765882021341,0.3608,87371.0,87358.0,0.3608]
[1765882021342,0.68049,87359.0,87358.0,0.3608]
[1765882021524,0.68049,87359.0,87346.0,0.20564]
[1765882021525,0.3608,87359.0,87340.0,0.61467242]
[1765882021726,0.0114506,87351.0,87340.0,0.61467242]
[1765882021931,0.3608,87359.0,87340.0,0.3608]
[1765882022131,0.68049,87341.0,87340.0,0.3608]
[1765882022634,0.0114511,87347.0,87340.0,0.3608]
[1765882022825,0.0114513,87346.0,87340.0,0.3608]
[1765882023228,0.32794,87341.0,87340.0,0.3618]
[1765882023543,0.68049,87341.0,87340.0,0.001]
[1765882023731,0.68574,87338.0,87337.0,0.00017172]
[1765882024429,0.898563,87332.0,87331.0,0.3608]
[1765882024744,0.68574,87316.0,87310.0,0.25387242]
[1765882024943,0.68574,87311.0,87310.0,0.25387242]
[1765882025131,0.3608,87323.0,87310.0,0.58200242]
[1765882025132,0.0114544,87322.0,87310.0,0.58200242]
[1765882025437,0.00017172,87325.0,87318.0,0.3608]
[1765882026341,0.68574,87319.0,87318.0,0.3608]
[1765882026541,0.68574,87319.0,87311.0,0.0114558]
[1765882026743,0.68574,87319.0,87318.0,0.002]
[1765882026933,0.6971947,87319.0,87318.0,0.002]
[1765882027338,0.68574,87311.0,87310.0,0.001]
[1765882027548,0.3608,87318.0,87317.0,0.65717]
[1765882027837,0.70379,87318.0,87317.0,0.65717]
[1765882028045,1.04654,87318.0,87309.0,0.3608]
[1765882028233,0.68574,87310.0,87309.0,0.3608]
[1765882028837,0.68574,87308.0,87307.0,0.00017172]
[1765882029237,0.34299,87308.0,87307.0,0.32830172]
[1765882029843,0.56217,87318.0,87307.0,0.66879802]
[1765882030340,0.56217,87318.0,87310.0,0.003]
[1765882030544,0.34299,87311.0,87310.0,0.003]
[1765882030746,0.68574,87311.0,87310.0,0.003]
[1765882030950,0.68574,87311.0,87307.0,0.00317172]
[1765882031141,0.68574,87311.0,87307.0,0.01462792]
[1765882031440,0.68574,87311.0,87307.0,0.00317172]
[1765882031642,0.34299,87308.0,87307.0,0.00317172]
[1765882031844,0.56217,87318.0,87308.0,0.0114562]
[1765882032144,0.011455,87317.0,87307.0,0.00517172]
[1765882032351,0.68574,87308.0,87307.0,0.00517172]
[1765882032652,0.88711,87308.0,87307.0,0.00217172]
[1765882033336,0.88711,87308.0,87307.0,0.00517172]
[1765882033935,0.88711,87308.0,87307.0,0.00217172]
[1765882034133,0.34299,87315.0,87314.0,0.65717]
[1765882034941,0.3608,87321.0,87308.0,0.21401]
[1765882034942,0.0114546,87320.0,87308.0,0.21401]
[1765882035144,0.34299,87312.0,87311.0,0.0114557]
[1765882035335,0.00017172,87325.0,87307.0,0.36097172]
[1765882035336,0.00017172,87325.0,87315.0,0.0114551]
[1765882035541,0.00017172,87325.0,87316.0,0.3608]
[1765882035747,0.34299,87317.0,87316.0,1.01797]
[1765882035944,0.00017172,87325.0,87324.0,0.32813]
[1765882036138,0.00017172,87325.0,87324.0,0.65717]
[1765882036331,0.68591172,87325.0,87316.0,0.3608]
[1765882036542,0.68574,87317.0,87316.0,0.3608]
[1765882037338,0.0114548,87319.0,87307.0,0.36097172]
[1765882037339,0.88711,87308.0,87307.0,0.36097172]
[1765882038244,0.6971974,87299.0,87298.0,0.00229102]
[1765882038445,1.0579974,87299.0,87298.0,0.00229102]
[1765882039644,1.04654,87299.0,87298.0,0.00229102]
[1765882040644,0.68874,87299.0,87298.0,0.00229102]
[1765882040849,0.68874,87299.0,87298.0,0.65946102]
[1765882041142,0.68874,87299.0,87298.0,0.00229102]
[1765882041342,1.04854,87299.0,87298.0,0.00229102]
[1765882042244,1.04754,87299.0,87298.0,0.00229102]
[1765882043247,0.68574,87296.0,87295.0,0.00010952]
[1765882043550,0.0114594,87284.0,87274.0,0.0114606]
[1765882043746,0.0114601,87279.0,87270.0,0.3608]
[1765882043939,0.68574,87271.0,87270.0,0.3608]
[1765882044248,0.3951794,87284.0,87272.0,0.0114608]
[1765882044447,0.0114596,87282.0,87272.0,0.0114608]
[1765882044845,9.716e-05,87283.0,87270.0,0.3608]
[1765882045041,0.0114602,87278.0,87270.0,0.3608]
[1765882045441,0.20137,87282.0,87273.0,0.0114608]
[1765882045840,0.20137,87282.0,87270.0,0.3608]
[1765882046035,9.716e-05,87283.0,87282.0,0.32813]
[1765882046241,0.34299,87275.0,87274.0,0.001]
[1765882046441,0.68574,87275.0,87274.0,0.001]
[1765882046641,9.716e-05,87283.0,87282.0,0.65717]
[1765882046951,0.69729666,87283.0,87273.0,0.001]
[1765882047149,0.69729666,87283.0,87274.0,0.0114606]
[1765882047359,0.68574,87274.0,87273.0,0.001]
[1765882047541,0.68574,87271.0,87270.0,0.3608]
[1765882048346,0.6972012,87270.0,87269.0,0.00017182]
[1765882048544,0.68574,87270.0,87269.0,0.00017182]
[1765882048745,0.68574,87270.0,87269.0,0.66880312]
[1765882048746,0.34299,87270.0,87269.0,0.66880312]
[1765882049053,9.716e-05,87283.0,87273.0,0.0114607]
[1765882049251,9.716e-05,87283.0,87270.0,0.0114611]
[1765882049749,9.716e-05,87283.0,87274.0,0.0114606]
[1765882049957,9.716e-05,87283.0,87276.0,0.3722602]
[1765882050253,9.716e-05,87283.0,87277.0,0.0114602]
[1765882050455,9.716e-05,87283.0,87282.0,0.65717]
[1765882051248,0.34308716,87283.0,87282.0,0.65717]
[1765882052051,0.68583716,87283.0,87282.0,0.65717]
[1765882052246,0.68583716,87283.0,87282.0,0.32813]
[1765882052446,0.68583716,87283.0,87277.0,0.0114602]
[1765882052749,0.68583716,87283.0,87282.0,0.65717]
[1765882052955,0.68583716,87283.0,87282.0,0.65817]
[1765882053151,0.68583716,87283.0,87282.0,0.001]
[1765882053454,0.68583716,87283.0,87276.0,0.3608]
[1765882053648,0.66714,87277.0,87276.0,0.3608]
[1765882054649,0.34285,87277.0,87276.0,1.01499]
[1765882054860,0.34385,87277.0,87276.0,1.01499]
[1765882055054,0.66814,87277.0,87276.0,1.01499]
[1765882055254,0.66814,87277.0,87276.0,0.3618]
[1765882056254,0.66714,87277.0,87276.0,0.001]
[1765882056447,0.66814,87277.0,87276.0,0.001]
[1765882056652,0.68412,87270.0,87269.0,0.00017182]
[1765882056853,0.6955812,87270.0,87269.0,0.00017182]
[1765882058355,0.68412,87270.0,87269.0,0.00017182]
[1765882058557,0.68412,87270.0,87269.0,0.00217182]
[1765882060654,0.68412,87270.0,87269.0,0.00017182]
[1765882060862,0.68412,87270.0,87269.0,0.00117182]
[1765882062460,0.68412,87259.0,87258.0,0.00229207]
[1765882062659,1.41156363,87259.0,87258.0,0.00043503]
[1765882062966,1.41156363,87259.0,87234.0,0.00012371]
[1765882062967,0.68412,87236.0,87235.0,0.3608]
[1765882063261,0.68422926,87236.0,87235.0,0.68705]
[1765882063456,0.68422926,87236.0,87235.0,0.3608]
[1765882063655,0.6955858,87235.0,87234.0,0.00012371]
[1765882064059,0.68412,87228.0,87227.0,0.00017192]
[1765882064359,0.88023,87228.0,87227.0,0.00017192]
[1765882064756,0.6955868,87227.0,87226.0,0.3608]
[1765882064965,0.00010926,87236.0,87226.0,0.3608]
[1765882064966,0.7274,87229.0,87228.0,0.65319]
[1765882065163,0.68412,87227.0,87226.0,0.3608]
[1765882066258,0.68412,87227.0,87218.0,0.00017192]
[1765882066560,0.68412,87227.0,87226.0,0.001]
[1765882066865,0.6955879,87219.0,87218.0,1.92e-06]
[1765882067063,0.6955893,87208.0,87207.0,0.3608]
[1765882067363,0.6955893,87208.0,87196.0,0.3608]
[1765882067364,0.68412,87197.0,87196.0,0.3608]
[1765882067662,0.68425848,87197.0,87188.0,0.360931]
[1765882067855,0.72744,87196.0,87188.0,0.360931]
[1765882068057,0.35983,87189.0,87188.0,0.360931]
[1765882068360,0.68412,87189.0,87188.0,0.360931]
[1765882068664,0.72744,87196.0,87188.0,1.014121]
[1765882069663,0.68412,87189.0,87188.0,1.014121]
[1765882069871,0.68412,87189.0,87188.0,0.687181]